bitfinex-derivatives/quotes_SOLF0:USTF0_20250109
["timestamp","ask_amount","ask_price","bid_price","bid_amount"]
[1736409402888,2.6273,190.38,190.3,2.6282]
[1736409403087,10.62941998,190.38,190.29,1.5031]
[1736409403489,2.6276,190.35,190.29,1.5031]
[1736409403699,10.62941998,190.38,190.29,1.5031]
[1736409404197,3.52,190.4,190.29,1.5031]
[1736409404395,3.52,190.4,190.3,10.62941998]
[1736409404589,3.52,190.4,190.31,1.5206]
[1736409404993,3.52,190.4,190.33,2.6278]
[1736409404994,6.1469,190.4,190.33,2.6278]
[1736409405191,3.52,190.4,190.31,1.5206]
[1736409405500,10.62941998,190.38,190.31,1.5206]
[1736409406197,3.52,190.4,190.31,1.5206]
[1736409407099,2.6269,190.4,190.33,2.6279]
[1736409407392,3.52,190.41,190.31,1.5206]
[1736409407598,13.25591998,190.44,190.35,2.6276]
[1736409407796,13.25591998,190.44,190.31,3.1169]
[1736409407797,82.08,190.56,190.33,10.62941998]
[1736409408099,10.62941998,190.47,190.33,10.62941998]
[1736409408292,3.52,190.46,190.36,10.62941998]
[1736409408490,3.52,190.46,190.33,10.62941998]
[1736409408692,2.6267,190.42,190.34,2.6276]
[1736409408893,10.62941998,190.44,190.33,10.62941998]
[1736409409088,10.62941998,190.44,190.31,3.1169]
[1736409409290,10.62941998,190.41,190.31,3.1169]
[1736409409502,3.54,190.4,190.31,3.1169]
[1736409409795,3.54,190.4,190.37,2.6272]
[1736409409997,3.54,190.44,190.33,10.62941998]
[1736409410199,3.54,190.44,190.36,10.62941998]
[1736409410496,3.54,190.44,190.38,2.6271]
[1736409411099,2.6262,190.46,190.38,2.6271]
[1736409411302,3.54,190.45,190.39,2.6271]
[1736409412101,2.6262,190.46,190.38,2.6272]
[1736409412102,6.1462,190.46,190.38,2.6272]
[1736409413598,10.62941998,190.47,190.39,10.62941998]
[1736409413599,3.52,190.47,190.39,10.62941998]
[1736409414400,3.52,190.47,190.4,1.492]
[1736409414795,10.62941998,190.46,190.37,1.5686]
[1736409415499,10.62941998,190.46,190.37,4.1958]
[1736409417604,10.62941998,190.46,190.37,1.5686]
[1736409418197,10.62941998,190.43,190.32,1.492]
[1736409418502,10.62941998,190.43,190.32,4.1199]
[1736409418800,3.52,190.47,190.31,1.5798]
[1736409418801,10.62941998,190.4,190.31,1.5798]
[1736409419098,3.52,190.39,190.31,1.5798]
[1736409420197,3.52,190.39,190.33,2.6279]
[1736409421706,1.04959328,190.55,190.31,12.20921998]
[1736409421707,3.52,190.47,190.34,10.62941998]
[1736409422007,3.52,190.46,190.34,10.62941998]
[1736409422206,2.6261,190.46,190.37,10.62941998]
[1736409422906,2.6261,190.46,190.38,2.6272]
[1736409423104,2.6261,190.46,190.37,10.62941998]
[1736409423306,10.62941998,190.47,190.37,10.62941998]
[1736409423507,2.6264,190.44,190.37,2.6273]
[1736409424003,10.62941998,190.47,190.36,4.1842]
[1736409424208,0.92756839,190.46,190.36,4.1842]
[1736409424806,2.6264,190.44,190.36,4.1842]
[1736409425606,14.12941998,190.44,190.31,12.20921998]
[1736409425809,10.62941998,190.38,190.28,10.24837268]
[1736409426114,3.52,190.37,190.28,10.24837268]
[1736409426613,2.6276,190.35,190.28,10.24837268]
[1736409426809,3.52,190.37,190.28,3.0292]
[1736409427206,6.1475,190.36,190.28,5.6577]
[1736409427614,2.6275,190.36,190.28,5.6577]
[1736409427807,3.5,190.35,190.28,1.5214]
[1736409428017,2.6278,190.34,190.26,4.2499]
[1736409428417,2.628,190.33,190.25,2.629]
[1736409429319,14.12941998,190.35,190.23,1.5946]
[1736409429517,10.62941998,190.32,190.23,1.5946]
[1736409431020,3.5,190.31,190.23,1.5946]
[1736409431923,3.5,190.31,190.25,2.6289]
[1736409434120,2.6283,190.3,190.23,4.2238]
[1736409434327,10.62941998,190.24,190.2,9.589e-05]
[1736409434529,10.62941998,190.2,190.19,40.92877572]
[1736409435029,10.62941998,190.2,190.17,87.0778568]
[1736409435426,0.92588436,190.19,190.08,1.5799]
[1736409435631,10.62941998,190.15,190.08,1.5799]
[1736409435834,3.52,190.14,190.08,1.5799]
[1736409436431,10.62941998,190.15,190.08,1.5799]
[1736409436632,3.52,190.14,190.1,2.6311]
[1736409436829,3.52,190.14,190.08,1.5799]
[1736409438132,17.01371286,190.21,190.08,1.5799]
[1736409438332,3.52,190.2,190.08,1.5799]
[1736409438528,3.52,190.2,190.1,2.631]
[1736409439829,3.5,190.19,190.1,2.631]
[1736409440830,3.5,190.19,190.08,1.5799]
[1736409441033,3.5,190.18,190.08,4.2111]
[1736409441233,20.51371286,190.18,190.08,4.2111]
[1736409441534,20.51371286,190.18,190.08,1.5799]
[1736409441732,20.51371286,190.18,190.09,2.6312]
[1736409442542,20.51371286,190.18,190.05,2.6318]
[1736409442834,4.42604375,190.17,190.02,17.01371286]
[1736409443034,3.5,190.17,190.02,17.01371286]
[1736409443937,3.5,190.17,190.07,2.6314]
[1736409444235,17.01371286,190.15,189.99,17.01371286]
[1736409444424,17.01371286,190.15,190.04,2.6318]
[1736409445135,17.01371286,190.15,190.02,2.632]
[1736409445432,0.92591701,190.14,189.98,1.4923]
[1736409445626,17.01371286,190.15,189.98,1.4923]
[1736409446032,17.01371286,190.15,190.03,2.6319]
[1736409446230,17.01371286,190.15,189.99,17.01371286]
[1736409446535,3.48,190.14,189.99,17.01371286]
[1736409447336,3.48,190.14,190.02,2.6321]
[1736409447538,17.01371286,190.15,189.98,18.50601286]
[1736409447755,17.01371286,190.18,190.01,17.01371286]
[1736409447939,4.40625931,190.17,190.06,2.6316]
[1736409448138,3.48,190.17,190.06,2.6316]
[1736409448436,0.92636631,190.16,190.05,2.6318]
[1736409449137,3.48,190.17,190.05,2.6318]
[1736409449337,3.48,190.17,190.01,17.01371286]
[1736409449539,3.48,190.17,190.06,2.6316]
[1736409449837,3.48,190.16,190.01,17.01371286]
[1736409451037,17.01371286,190.21,190.04,17.01371286]
[1736409451247,0.92656865,190.2,190.05,2.9557]
[1736409451443,3.46,190.19,190.1,2.6311]
[1736409451741,3.46,190.19,190.05,1.4838]
[1736409451742,1.97813662,190.18,190.05,1.4838]
[1736409451934,17.01371286,190.13,190.05,1.4838]
[1736409452139,3.5,190.12,190.05,4.1155]
[1736409456145,3.5,190.12,190.05,2.6317]
[1736409458038,3.5,190.12,190.07,2.6315]
[1736409458241,3.48,190.14,190.03,17.01371286]
[1736409458646,3.48,190.15,190.06,17.01371286]
[1736409458843,3.48,190.17,190.07,3.1243]
[1736409459045,3.48,190.17,190.08,1.492]
[1736409459348,3.48,190.17,190.09,10.63085235]
[1736409460145,1.05163529,190.18,190.09,10.63085235]
[1736409460341,1.05163529,190.18,190.12,10.63085235]
[1736409460948,3.46,190.21,190.12,10.63085235]
[1736409462250,3.46,190.21,190.15,2.6303]
[1736409462550,3.46,190.21,190.12,10.63085235]
[1736409463146,3.46,190.23,190.12,10.63085235]
[1736409463361,10.63085235,190.27,190.15,10.63085235]
[1736409463547,3.44,190.25,190.16,3.1221]
[1736409464145,3.44,190.25,190.17,2.63]
[1736409465045,3.44,190.25,190.16,3.1221]
[1736409465352,10.63085235,190.24,190.16,3.1221]
[1736409467049,10.63085235,190.24,190.16,5.7523]
[1736409468448,3.44,190.25,190.17,2.63]
[1736409469650,3.44,190.25,190.18,2.6299]
[1736409469850,3.44,190.25,190.16,3.1221]
[1736409469851,140.62690365,190.34,190.17,10.63085235]
[1736409470044,10.63085235,190.3,190.17,12.26355235]
[1736409470248,10.63085235,190.3,190.22,2.6293]
[1736409471053,10.63085235,190.3,190.23,2.6292]
[1736409472553,3.42,190.33,190.2,10.63085235]
[1736409472753,4.32710876,190.32,190.25,2.629]
[1736409473057,3.4,190.32,190.2,10.63085235]
[1736409473250,0.92714718,190.31,190.2,10.63085235]
[1736409473551,3.4,190.3,190.2,10.63085235]
[1736409474158,3.4,190.3,190.23,2.6292]
[1736409474755,3.4,190.3,190.24,2.6291]
[1736409475354,3.4,190.3,190.2,10.63085235]
[1736409476260,3.4,190.3,190.23,2.6292]
[1736409476763,3.4,190.3,190.24,1.5646]
[1736409477464,3.4,190.3,190.24,4.1937]
[1736409477958,14.03085235,190.3,190.24,1.5646]
[1736409478165,10.63085235,190.27,190.17,1.6327]
[1736409478459,3.4,190.3,190.18,1.5802]
[1736409478460,10.63085235,190.24,190.18,1.5802]
[1736409478661,14.03085235,190.24,190.18,1.5802]
[1736409481255,14.03085235,190.24,190.18,4.2102]
[1736409481662,14.03085235,190.24,190.18,1.5802]
[1736409482458,10.63085235,190.21,190.16,1.5941]
[1736409484364,10.63085235,190.21,190.12,1.5936]
[1736409484566,10.63085235,190.21,190.13,2.6306]
[1736409485860,10.63085235,190.21,190.12,1.5936]
[1736409485861,10.63085235,190.21,190.14,2.6305]
[1736409486366,10.63085235,190.21,190.12,4.2243]
[1736409486865,10.63085235,190.21,190.12,1.5936]
[1736409487363,10.63085235,190.21,190.13,2.6305]
[1736409488067,3.4,190.2,190.16,2.6302]
[1736409488263,3.4,190.2,190.12,12.22445235]
[1736409488659,10.63085235,190.24,190.13,3.4]
[1736409488868,10.63085235,190.27,190.15,10.63085235]
[1736409489267,3.4,190.28,190.22,2.6293]
[1736409489670,10.63085235,190.3,190.19,3.0937]
[1736409489963,140.62690365,190.42,190.24,10.63085235]
[1736409489964,3.4,190.34,190.24,10.63085235]
[1736409490469,3.4,190.34,190.26,2.6288]
[1736409491167,0.92714549,190.33,190.26,2.6288]
[1736409491367,0.92714549,190.33,190.24,10.63085235]
[1736409491663,0.9271442,190.32,190.25,2.629]
[1736409491872,10.63085235,190.35,190.21,10.63085235]
[1736409491873,0.9271442,190.31,190.21,10.63085235]
[1736409492164,10.63085235,190.35,190.25,2.6289]
[1736409492365,10.63085235,190.35,190.22,1.5091]
[1736409492366,0.9270563,190.34,190.22,1.5091]
[1736409492572,0.9270563,190.34,190.24,10.63085235]
[1736409492869,0.9270563,190.34,190.28,2.6284]
[1736409493064,10.63085235,190.35,190.28,2.6284]
[1736409493369,14.03085235,190.38,190.29,2.6284]
[1736409493569,0.92753969,190.37,190.29,2.6284]
[1736409493871,0.92753969,190.37,190.28,2.6286]
[1736409494168,10.63085235,190.35,190.25,3.4]
[1736409494369,0.92753969,190.34,190.25,3.4]
[1736409495172,10.63085235,190.32,190.22,1.5091]
[1736409495464,3.4,190.31,190.22,1.5091]
[1736409496373,11.55793318,190.3,190.09,57.69115338]
[1736409496570,10.63085235,190.19,190.11,3.0646]
[1736409496762,3.4,190.18,190.11,3.0646]
[1736409498464,3.4,190.18,190.08,2.6313]
[1736409498670,10.63085235,190.16,190.04,10.63085235]
[1736409499070,10.63085235,190.16,190.07,2.6315]
[1736409499373,10.63085235,190.16,190.04,10.63085235]
[1736409499567,3.4,190.15,190.04,10.63085235]
[1736409499972,3.4,190.14,190.07,10.63085235]
[1736409500562,3.4,190.14,190.09,2.6311]
[1736409501670,3.4,190.14,190.06,2.6315]
[1736409502677,3.4,190.14,190.07,2.6314]
[1736409503167,3.4,190.14,190.1,2.6311]
[1736409503575,10.63085235,190.16,190.1,2.6311]
[1736409503773,10.63085235,190.16,190.04,10.63085235]
[1736409503774,3.4,190.15,190.04,10.63085235]
[1736409503977,3.4,190.15,190.08,2.6312]
[1736409504174,3.4,190.15,190.04,10.63085235]
[1736409504872,3.4,190.15,190.09,2.6312]
[1736409505079,10.63085235,190.16,190.09,2.6312]
[1736409505272,3.4,190.15,190.09,2.6312]
[1736409505672,3.4,190.15,190.11,2.6309]
[1736409505875,3.4,190.15,190.07,10.63085235]
[1736409506273,10.63085235,190.19,190.1,2.6311]
[1736409506576,4.32642187,190.18,190.1,2.6311]
[1736409506875,3.4,190.18,190.1,2.6311]
[1736409507088,10.63085235,190.19,190.1,2.6311]
[1736409507284,4.32641985,190.18,190.1,2.6311]
[1736409507484,3.4,190.18,190.1,2.6311]
[1736409507892,3.4,190.18,190.11,2.6309]
[1736409508091,10.63085235,190.19,190.08,1.5963]
[1736409508282,14.03085235,190.19,190.08,1.5963]
[1736409508986,10.63085235,190.19,190.08,1.5963]
[1736409509187,10.63085235,190.19,190.12,2.6307]
[1736409509188,14.03085235,190.19,190.12,2.6307]
[1736409509492,10.63085235,190.16,190.08,1.5963]
[1736409511085,10.63085235,190.16,190.08,4.2275]
[1736409512083,10.63085235,190.16,190.08,1.5963]
[1736409512286,10.63085235,190.16,190.09,2.6312]
[1736409513591,14.03085235,190.19,190.12,2.6308]
[1736409513783,0.92648155,190.18,190.12,2.6308]
[1736409513987,14.03085235,190.19,190.09,13.66095235]
[1736409514184,14.03085235,190.19,190.12,2.6308]
[1736409514389,14.03085235,190.19,190.09,13.66095235]
[1736409514988,14.03085235,190.19,190.11,2.6309]
[1736409518003,14.03085235,190.19,190.09,13.66095235]
[1736409518297,14.03085235,190.19,190.12,2.6308]
[1736409518594,10.63085235,190.19,190.12,2.6308]
[1736409518793,3.4,190.18,190.12,2.6308]
[1736409521600,3.4,190.18,190.14,2.6305]
[1736409522297,3.4,190.2,190.15,2.6303]
[1736409523699,3.4,190.2,190.12,10.63085235]
[1736409523899,3.4,190.2,190.14,2.6305]
[1736409524699,3.4,190.2,190.12,10.63085235]
[1736409524700,3.4,190.21,190.15,2.6303]
[1736409524999,0.92839255,190.2,190.12,10.63085235]
[1736409525399,10.63085235,190.25,190.12,10.63085235]
[1736409525701,3.4,190.24,190.15,10.63085235]
[1736409526401,10.63085235,190.28,190.19,2.6298]
[1736409526800,4.32873224,190.27,190.19,2.6298]
[1736409527003,0.92873224,190.26,190.19,2.6298]
[1736409527405,0.92873224,190.26,190.17,3.1823]
[1736409527703,4.32873224,190.25,190.18,2.6299]
[1736409527906,0.92873224,190.24,190.18,2.6299]
[1736409528293,0.92873224,190.24,190.2,2.6297]
[1736409528496,3.4,190.25,190.2,2.6297]
[1736409528704,3.4,190.26,190.2,2.6297]
[1736409529111,0.92892383,190.25,190.2,2.6297]
[1736409529706,3.4,190.26,190.21,2.6295]
[1736409529908,1.05102737,190.29,190.18,10.63085235]
[1736409530104,4.3290017,190.28,190.18,10.63085235]
[1736409530302,3.4,190.28,190.18,10.63085235]
[1736409530909,0.92903957,190.27,190.18,10.63085235]
[1736409531303,1.05102737,190.29,190.18,10.63085235]
[1736409531304,3.4,190.28,190.18,10.63085235]
[1736409532110,1.05102737,190.29,190.18,10.63085235]
[1736409532307,0.92901106,190.28,190.18,10.63085235]
[1736409532811,4.45102737,190.29,190.22,2.6293]
[1736409533815,4.45102737,190.29,190.23,2.6292]
[1736409535611,4.45102737,190.29,190.21,10.63085235]
[1736409535812,3.4,190.29,190.21,10.63085235]
[1736409536208,3.4,190.29,190.24,2.629]
[1736409536409,11.55981483,190.28,190.17,3.1823]
[1736409536613,0.92896248,190.27,190.17,3.1823]
[1736409536813,0.92896248,190.27,190.17,13.81315235]
[1736409537014,10.63085235,190.28,190.2,2.6296]
[1736409537613,10.63085235,190.28,190.17,13.81315235]
[1736409537614,10.63085235,190.28,190.21,2.6295]
[1736409539027,0.92896865,190.27,190.21,2.6295]
[1736409539520,0.9289439,190.26,190.21,2.6295]
[1736409539821,10.63085235,190.28,190.21,2.6295]
[1736409540018,0.9289439,190.27,190.21,2.6295]
[1736409540218,10.63085235,190.28,190.21,2.6295]
[1736409540219,0.92893519,190.26,190.21,2.6295]
[1736409540408,0.92892096,190.25,190.17,13.81315235]
[1736409540612,10.63085235,190.28,190.17,13.81315235]
[1736409540811,0.92892698,190.27,190.17,13.81315235]
[1736409541009,0.92892698,190.27,190.19,2.6297]
[1736409541514,0.92888217,190.26,190.18,2.6299]
[1736409541710,0.92888217,190.25,190.18,2.6299]
[1736409542015,10.63085235,190.28,190.18,2.6299]
[1736409542217,0.92896686,190.27,190.18,2.6299]
[1736409542416,10.63085235,190.25,190.17,3.1823]
[1736409542616,0.92896686,190.24,190.17,3.1823]
[1736409542816,3.4,190.23,190.17,3.1823]
[1736409544625,3.4,190.23,190.18,2.6299]
[1736409545641,3.4,190.26,190.18,10.63085235]
[1736409546021,0.92887077,190.25,190.18,10.63085235]
[1736409546223,0.92887077,190.25,190.2,2.6297]
[1736409546831,3.4,190.26,190.2,2.6297]
[1736409547021,0.92887472,190.25,190.2,2.6297]
[1736409548528,3.4,190.26,190.2,2.6297]
[1736409550632,7.97574124,190.38,190.18,10.63085235]
[1736409550832,10.63085235,190.31,190.17,3.1823]
[1736409551132,4.32908382,190.3,190.21,2.6295]
[1736409551326,0.92908382,190.29,190.17,13.81315235]
[1736409552035,0.92908382,190.29,190.22,2.6294]
[1736409552626,0.92908382,190.29,190.2,10.63085235]
[1736409553333,0.92908382,190.29,190.23,10.63085235]
[1736409553731,0.92908382,190.29,190.24,2.629]
[1736409553924,10.63085235,190.34,190.23,10.63085235]
[1736409554126,4.32919933,190.33,190.23,10.63085235]
[1736409554329,0.92919933,190.32,190.23,10.63085235]
[1736409554735,3.4,190.33,190.23,10.63085235]
[1736409554936,0.92915398,190.32,190.23,10.63085235]
[1736409555230,4.32915398,190.32,190.23,10.63085235]
[1736409555426,0.92915398,190.31,190.24,1.6018]
[1736409555632,0.92915398,190.31,190.26,2.6288]
[1736409557330,0.92915398,190.31,190.25,3.0768]
[1736409557531,10.63085235,190.31,190.2,10.63085235]
[1736409557833,0.92902117,190.3,190.21,1.5357]
[1736409558137,0.92902117,190.3,190.23,2.6293]
[1736409560235,0.92884554,190.29,190.21,1.5357]
[1736409560432,0.92884554,190.28,190.21,4.1651]
[1736409560627,0.92884554,190.27,190.21,4.1651]
[1736409560835,10.63085235,190.31,190.21,4.1651]
[1736409561036,0.92881955,190.3,190.21,4.1651]
[1736409561338,6.79728909,190.28,190.21,10.96238909]
[1736409562234,6.79728909,190.26,190.21,1.5357]
[1736409562439,6.79728909,190.24,190.21,1.5357]
[1736409563337,6.79728909,190.24,190.18,2.6299]
[1736409564038,6.79728909,190.24,190.17,6.79728909]
[1736409564740,6.79728909,190.24,190.17,9.42728909]
[1736409564936,6.79728909,190.24,190.17,6.79728909]
[1736409565437,10.62771464,190.24,190.16,4.7901]
[1736409565640,0.92859453,190.23,190.16,3.1795]
[1736409568142,10.62771464,190.24,190.16,3.1795]
[1736409568337,0.92879124,190.23,190.16,3.1795]
[1736409570136,0.92879124,190.23,190.16,5.8096]
[1736409570842,0.92892593,190.22,190.16,5.8096]
[1736409571042,10.62771464,190.24,190.16,3.1795]
[1736409571244,0.92889613,190.23,190.16,3.1795]
[1736409571541,10.62771464,190.24,190.16,3.1795]
[1736409571743,0.92887147,190.23,190.16,3.1795]
[1736409572938,0.92887147,190.23,190.08,1.5169]
[1736409573142,10.62771464,190.21,190.08,1.5169]
[1736409573343,4.30887147,190.2,190.08,1.5169]
[1736409573533,0.92887147,190.19,190.08,1.5169]
[1736409573733,0.92891051,190.19,190.08,1.5169]
[1736409574241,0.92891051,190.19,190.1,2.6311]
[1736409574741,0.92891051,190.19,190.08,1.5169]
[1736409574931,0.92891051,190.19,190.1,10.62771464]
[1736409575137,3.38,190.19,190.1,10.62771464]
[1736409576243,3.38,190.19,190.12,2.6308]
[1736409576440,3.38,190.19,190.13,1.6049]
[1736409578245,3.38,190.19,190.13,4.2354]
[1736409578448,3.38,190.19,190.14,1.4916]
[1736409580153,3.38,190.21,190.14,1.4916]
[1736409580353,3.38,190.21,190.14,4.1221]
[1736409581155,3.38,190.21,190.14,1.4916]
[1736409582555,14.00771464,190.21,190.14,1.4916]
[1736409582756,0.92866796,190.2,190.14,1.4916]
[1736409583554,14.00771464,190.21,190.14,1.4916]
[1736409585261,6.80268775,190.2,190.14,8.29428775]
[1736409586661,6.80268775,190.16,190.08,1.5169]
[1736409586864,6.80268775,190.12,190.08,1.5169]
[1736409587855,6.80268775,190.14,190.08,1.5169]
[1736409588956,3.38,190.15,190.09,6.80268775]
[1736409589159,3.38,190.15,190.11,6.80268775]
[1736409589361,3.38,190.15,190.08,12.1488414]
[1736409590162,3.38,190.15,190.1,2.631]
[1736409590358,3.38,190.15,190.08,12.1488414]
[1736409591161,3.38,190.15,190.09,2.6312]
[1736409593662,3.38,190.15,190.08,12.1488414]
[1736409593863,3.38,190.18,190.11,10.6319414]
[1736409594462,10.6319414,190.27,190.14,10.6319414]
[1736409594658,4.30879328,190.26,190.15,3.0643]
[1736409594862,0.92879328,190.25,190.15,4.5419]
[1736409595156,0.92882283,190.24,190.15,4.5419]
[1736409595360,0.92882283,190.25,190.15,4.5419]
[1736409595559,0.92882283,190.24,190.15,4.5419]
[1736409595766,0.92886712,190.23,190.15,4.5419]
[1736409595968,3.38,190.26,190.15,4.5419]
[1736409596265,0.92887362,190.25,190.18,2.6299]
[1736409596459,0.92887362,190.24,190.18,2.6299]
[1736409596666,10.6319414,190.27,190.18,2.6299]
[1736409596864,0.92890556,190.26,190.18,2.6299]
[1736409597367,0.92890556,190.26,190.15,4.5419]
[1736409597866,0.92876036,190.25,190.15,4.5419]
[1736409598065,0.92876036,190.24,190.15,4.5419]
[1736409598269,0.92876036,190.23,190.17,2.63]
[1736409598462,0.92876036,190.22,190.17,2.63]
[1736409598664,14.0119414,190.27,190.15,4.5419]
[1736409598963,0.92872081,190.26,190.16,2.6302]
[1736409599358,0.92872081,190.26,190.17,10.6319414]
[1736409599564,0.92872081,190.26,190.18,2.6299]
[1736409600225,10.6319414,190.27,190.18,2.6299]
[1736409600389,3.38,190.28,190.18,2.6299]
[1736409600634,3.38,190.31,190.18,2.6299]
[1736409603671,0.92926563,190.3,190.18,2.6299]
[1736409604871,0.92926563,190.3,190.17,2.6301]
[1736409605271,0.92926563,190.3,190.15,4.5419]
[1736409605671,0.92926563,190.3,190.15,11.86115601]
[1736409605866,0.92957474,190.29,190.15,11.86115601]
[1736409606070,0.92957474,190.28,190.15,11.86115601]
[1736409606271,0.92957474,190.31,190.15,11.86115601]
[1736409606470,3.38,190.32,190.15,11.86115601]
[1736409606471,0.92957474,190.3,190.15,11.86115601]
[1736409606672,0.92957474,190.29,190.15,10.38355601]
[1736409606870,0.92957474,190.28,190.15,10.38355601]
[1736409607069,0.92957474,190.27,190.15,10.38355601]
[1736409607269,4.30957474,190.26,190.15,10.38355601]
[1736409607473,0.92957474,190.25,190.15,7.31925601]
[1736409607675,0.92957474,190.25,190.1,1.5209]
[1736409608694,3.38,190.24,190.1,1.5209]
[1736409608867,0.92957474,190.23,190.1,1.5209]
[1736409609067,0.92957474,190.23,190.11,2.6309]
[1736409609573,0.92957474,190.23,190.12,2.6307]
[1736409609770,11.37055303,190.34,190.11,3.38]
[1736409609971,3.38,190.34,190.11,3.38]
[1736409610181,3.38,190.34,190.13,11.90125751]
[1736409610182,0.92896694,190.33,190.13,11.90125751]
[1736409610978,0.92950497,190.32,190.14,4.5820015]
[1736409611176,0.92950497,190.31,190.2,2.6297]
[1736409611373,0.92950497,190.33,190.21,8.0528]
[1736409611572,3.38,190.34,190.21,8.0528]
[1736409611772,0.92952595,190.33,190.21,8.0528]
[1736409612874,0.92953351,190.32,190.21,8.0528]
[1736409613076,0.92953351,190.31,190.21,8.0528]
[1736409613376,0.92953351,190.3,190.21,8.0528]
[1736409613579,0.92953916,190.29,190.21,8.0528]
[1736409613773,0.92953916,190.28,190.21,8.0528]
[1736409614071,0.92953916,190.27,190.21,8.0528]
[1736409614273,1.0505857,190.37,190.21,8.0528]
[1736409614474,0.92959843,190.36,190.21,8.0528]
[1736409616279,0.92969901,190.35,190.23,2.6293]
[1736409616474,0.92969901,190.34,190.24,3.38]
[1736409616778,0.92969901,190.33,190.24,3.38]
[1736409616983,0.92969901,190.32,190.24,3.38]
[1736409617172,0.92969901,190.31,190.24,3.38]
[1736409617472,0.92969901,190.3,190.23,2.6293]
[1736409617677,4.4305857,190.37,190.23,6.0093]
[1736409617879,0.92966724,190.36,190.23,6.0093]
[1736409618079,0.92966724,190.36,190.21,4.6728]
[1736409618378,0.92966724,190.36,190.21,8.0528]
[1736409618676,1.05069608,190.35,190.21,4.6728]
[1736409618872,0.92962819,190.34,190.21,4.6728]
[1736409621473,0.93199566,190.33,190.21,4.6728]
[1736409621673,0.93199566,190.32,190.21,4.6728]
[1736409621878,4.31199566,190.31,190.21,4.6728]
[1736409622075,0.93199566,190.3,190.21,4.6728]
[1736409622973,0.93199566,190.3,190.21,7.3023]
[1736409623373,0.93199566,190.3,190.21,4.6728]
[1736409623578,0.93199566,190.3,190.22,2.6294]
[1736409624082,0.93206994,190.29,190.22,2.6294]
[1736409624281,0.93206994,190.3,190.22,2.6294]
[1736409624479,0.93206994,190.29,190.22,2.6294]
[1736409624676,0.93206994,190.3,190.22,2.6294]
[1736409624878,0.93206994,190.29,190.22,2.6294]
[1736409625180,0.93206994,190.28,190.22,2.6294]
[1736409625379,0.93206994,190.27,190.22,2.6294]
[1736409625577,3.38,190.31,190.22,2.6294]
[1736409625781,0.93180932,190.3,190.22,2.6294]
[1736409626578,0.93180932,190.3,190.21,7.3023]
[1736409626881,0.93164139,190.29,190.21,4.6728]
[1736409627082,3.38,190.31,190.23,10.61517527]
[1736409627282,0.93175467,190.3,190.23,10.61517527]
[1736409627483,0.93176347,190.29,190.23,10.61517527]
[1736409627679,3.38,190.31,190.23,10.61517527]
[1736409627988,0.93170152,190.3,190.23,10.61517527]
[1736409628982,0.93170152,190.3,190.23,13.24437527]
[1736409629585,0.93166794,190.29,190.23,13.24437527]
[1736409629885,3.38,190.31,190.23,13.24437527]
[1736409630083,0.9315875,190.3,190.23,13.24437527]
[1736409631177,0.9315875,190.3,190.23,10.61517527]
[1736409631984,0.9315875,190.3,190.25,2.629]
[1736409632184,3.38,190.31,190.25,2.629]
[1736409632388,0.93154841,190.3,190.25,2.629]
[1736409632585,0.93154841,190.33,190.25,2.629]
[1736409632885,0.9315851,190.32,190.25,2.629]
[1736409633085,0.9315851,190.33,190.25,2.629]
[1736409633284,0.9315851,190.32,190.25,2.629]
[1736409633489,0.9315851,190.31,190.25,2.629]
[1736409633688,0.9315851,190.3,190.25,2.629]
[1736409633885,3.38,190.34,190.25,2.629]
[1736409634087,0.93146275,190.33,190.25,2.629]
[1736409634786,0.93144806,190.32,190.25,2.629]
[1736409635092,0.93144806,190.31,190.25,2.629]
[1736409635386,0.93144806,190.3,190.25,2.629]
[1736409635588,3.38,190.34,190.25,2.629]
[1736409635780,0.93145228,190.33,190.25,2.629]
[1736409637389,0.93145228,190.33,190.27,6.79341867]
[1736409637591,0.93145228,190.33,190.25,2.629]